bitfinex/quotes_SOLUSD_20220116
["timestamp","ask_amount","ask_price","bid_price","bid_amount"]
[1642328801189,24.94417588,149.99,149.9,39.17372945]
[1642328801389,24.94417588,149.99,149.9,38.92372945]
[1642328802490,24.94417588,149.99,149.91,24.663]
[1642328803192,24.94417588,149.99,149.9,38.92372945]
[1642328804693,24.94417588,149.99,149.91,23.0231]
[1642328807798,24.94417588,149.99,149.91,24.89880004]
[1642328809199,24.94417588,149.99,149.91,23.0231]
[1642328818039,24.94417588,149.99,149.91,72.72282952]
[1642328819555,24.94417588,149.99,149.91,23.0231]
[1642328820556,24.94417588,149.99,149.91,63.32619675]
[1642328822157,24.94417588,149.99,149.91,23.0231]
[1642328822880,24.94417588,149.99,149.91,23.2731]
[1642328823281,24.94417588,149.99,149.91,62.30509136]
[1642328823883,24.94417588,149.99,149.91,64.1807914]
[1642328824482,24.94417588,149.99,149.91,63.9307914]
[1642328824883,24.94417588,149.99,149.91,62.05509136]
[1642328825084,1.70077588,149.99,149.91,71.11609136]
[1642328825285,1.89390295,150.01,149.91,71.11609136]
[1642328825484,1.89390295,150.01,149.92,0.26]
[1642328826287,27.640533,150.01,149.92,0.26]
[1642328826487,27.640533,150.01,149.91,78.9917914]
[1642328826690,25.74663005,150.01,149.92,0.26]
[1642328826889,25.74663005,150.01,149.93,1.87570004]
[1642328827391,25.74663005,150.01,149.93,2.12570004]
[1642328828592,25.74663005,150.01,149.93,0.25]
[1642328828992,25.74663005,150.01,149.92,2.12570004]
[1642328835428,24.8091,150.0,149.92,2.12570004]
[1642328835628,24.8091,150.0,149.92,0.25]
[1642328835836,24.8091,150.0,149.91,70.1807914]
[1642328837828,24.8091,150.0,149.91,69.9307914]
[1642328838033,24.8091,150.0,149.91,63.9307914]
[1642328838536,24.8091,150.0,149.91,62.05509136]
[1642328842336,24.8091,150.0,149.91,62.30509136]
[1642328843238,24.8091,150.0,149.91,62.05509136]
[1642328846241,24.8091,150.0,149.91,62.30509136]
[1642328852941,1.70077588,149.99,149.91,62.30509136]
[1642328853343,24.8091,150.0,149.91,62.30509136]
[1642328856349,24.8091,150.0,149.91,62.05509136]
[1642328857751,24.8091,150.0,149.91,62.30509136]
[1642328865783,26.70300295,150.0,149.91,62.30509136]
[1642328867892,26.70300295,150.0,149.91,64.1807914]
[1642328877404,26.70300295,150.0,149.91,70.1807914]
[1642328879605,26.70300295,150.0,149.91,64.1807914]
[1642328880614,26.70300295,150.0,149.91,63.9307914]
[1642328881811,26.70300295,150.0,149.91,62.05509136]
[1642328882012,26.70300295,150.0,149.91,62.30509136]
[1642328882711,26.70300295,150.0,149.91,64.1807914]
[1642328884015,26.70300295,150.0,149.91,62.30509136]
[1642328884716,26.70300295,150.0,149.91,64.1807914]
[1642328889439,26.70300295,150.0,149.91,63.9307914]
[1642328890243,26.70300295,150.0,149.91,24.89880004]
[1642328890446,28.40377883,150.0,149.91,24.89880004]
[1642328890943,1.89390295,149.99,149.91,23.0231]
[1642328892845,3.59467883,149.99,149.91,23.0231]
[1642328893443,1.89390295,149.98,149.91,23.0231]
[1642328894349,3.59467883,149.98,149.89,36.31272734]
[1642328894951,3.59467883,149.98,149.88,1.87570004]
[1642328895550,3.59467883,149.98,149.87,1.87570004]
[1642328895959,3.59467883,149.98,149.88,46.45844977]
[1642328896354,0.76461015,149.96,149.88,46.45844977]
[1642328896756,2.46538603,149.96,149.88,46.45844977]
[1642328897357,1.89390295,149.97,149.88,52.70844977]
[1642328897560,1.89390295,149.97,149.89,22.5612]
[1642328898164,1.89390295,149.98,149.89,22.5612]
[1642328898364,21.64696225,149.97,149.89,22.5612]
[1642328898763,21.64696225,149.97,149.89,22.8112]
[1642328900165,3.59467883,149.99,149.89,22.8112]
[1642328900364,24.7232,149.98,149.89,22.8112]
[1642328905795,24.7232,149.98,149.89,22.5612]
[1642328906595,1.70077588,149.97,149.89,22.5612]
[1642328907197,1.70077588,149.97,149.89,22.8112]
[1642328907595,1.70077588,149.97,149.89,22.5612]
[1642328911899,10.15177588,149.97,149.86,1.87570004]
[1642328912099,10.15177588,149.97,149.86,26.27630004]
[1642328912304,1.70077588,149.96,149.86,26.27630004]
[1642328912702,25.41097588,149.96,149.86,24.4006]
[1642328912901,0.68776003,149.95,149.87,47.74964081]
[1642328913102,2.38853591,149.95,149.87,47.74964081]
[1642328913304,1.70077588,149.94,149.87,47.74964081]
[1642328920010,1.70077588,149.94,149.86,24.4006]
[1642328921012,1.70077588,149.94,149.87,38.82012436]
[1642328923916,1.70077588,149.94,149.87,39.07012436]
[1642328924145,0.68776003,149.95,149.87,39.07012436]
[1642328924517,23.7102,149.96,149.88,24.3887]
[1642328924918,23.7102,149.96,149.88,24.6387]
[1642328925416,18.9256361,149.95,149.88,24.3887]
[1642328926319,20.62641198,149.95,149.88,24.3887]
[1642328939258,20.62641198,149.95,149.86,1.87570004]
[1642328940061,1.89390295,149.94,149.85,62.53012642]
[1642328940461,1.70077588,149.93,149.85,62.53012642]
[1642328940665,1.70077588,149.93,149.86,22.9115]
[1642328943161,6.96760161,149.92,149.86,22.9115]
[1642328943561,7.5856041,149.9,149.86,22.9115]
[1642328944867,1.70077588,149.91,149.86,22.9115]
[1642328945070,1.70077588,149.94,149.86,22.9115]
[1642328945367,1.89390295,149.95,149.86,22.9115]
[1642328945966,24.62237454,149.95,149.86,23.1615]
[1642328946366,1.89390295,149.97,149.86,25.03720004]
[1642328947476,24.50561848,149.96,149.86,25.03720004]
[1642328949581,24.50561848,149.96,149.86,24.78720004]
[1642328949582,22.6659,149.95,149.86,24.78720004]
[1642328949982,24.36667588,149.95,149.86,24.78720004]
[1642328950407,24.36667588,149.95,149.86,22.9115]
[1642328951005,24.36667588,149.95,149.86,24.78720004]
[1642328951705,24.36667588,149.95,149.86,25.03720004]
[1642328951906,24.36667588,149.95,149.86,23.1615]
[1642328952406,24.36667588,149.95,149.86,25.03720004]
[1642328954309,24.36667588,149.95,149.86,24.78720004]
[1642328954508,1.70077588,149.95,149.86,24.78720004]
[1642328954713,1.70077588,149.95,149.86,25.03720004]
[1642328954909,24.50561848,149.96,149.86,25.03720004]
[1642328955109,24.50561848,149.96,149.86,35.09620004]
[1642328955409,24.50561848,149.96,149.87,1.87570004]
[1642328955809,24.50561848,149.96,149.87,2.12570004]
[1642328956211,26.20639436,149.96,149.87,2.12570004]
[1642328961417,24.5301,149.98,149.87,2.12570004]
[1642328961618,24.5301,149.98,149.87,8.12570004]
[1642328962222,26.23087588,149.98,149.88,24.70640004]
[1642328962421,25.33008152,149.97,149.89,44.61038803]
[1642328962621,25.33008152,149.97,149.9,24.9795]
[1642328963020,1.70077588,149.98,149.9,24.9795]
[1642328963220,1.70077588,149.98,149.91,0.26]
[1642328963622,3.59467883,150.0,149.91,0.26]
[1642328964025,23.7942493,149.99,149.91,0.26]
[1642328970235,23.7942493,149.99,149.9,25.2295]
[1642328970435,23.7942493,149.99,149.9,24.9795]
[1642328971133,23.2149,149.98,149.9,24.9795]
[1642328971932,23.2149,149.98,149.91,32.873027]
[1642328976334,23.7942493,149.99,149.91,33.123027]
[1642328976767,1.89390295,150.01,149.91,33.123027]
[1642328976966,1.89390295,150.01,149.92,24.0465]
[1642328977767,21.6431295,150.0,149.92,24.0465]
[1642328979869,23.34390538,150.0,149.92,24.0465]
[1642328980269,21.6431295,150.0,149.92,24.0465]
[1642328984375,21.6431295,150.0,149.92,24.2965]
[1642328985782,21.6431295,150.0,149.92,24.0465]
[1642328986078,23.34390538,150.0,149.92,24.0465]
[1642328988481,21.6431295,150.0,149.92,24.0465]
[1642328994184,21.6431295,150.0,149.92,24.2965]
[1642328994384,21.6431295,150.0,149.92,24.0465]
[1642328995511,23.34390538,150.0,149.92,24.0465]
[1642328997317,25.23780833,150.0,149.91,32.873027]
[1642328997919,24.2123,149.99,149.91,32.873027]
[1642328998319,1.70077588,149.98,149.91,32.873027]
[1642329003323,26.10620295,149.99,149.91,33.123027]
[1642329003525,26.10620295,149.99,149.92,23.2134]
[1642329004327,45.87996375,149.99,149.92,23.2134]
[1642329005727,43.9860608,149.99,149.92,23.2134]
[1642329006327,45.68683668,149.99,149.92,23.2134]
[1642329007529,43.9860608,149.99,149.92,23.2134]
[1642329009229,24.2123,149.99,149.92,23.2134]
[1642329009430,4.87785002,149.96,149.92,23.2134]
[1642329010232,1.89390295,150.02,149.93,175.05]
[1642329010534,1.89390295,150.02,149.93,108.25]
[1642329010734,1.89390295,150.02,149.94,0.26]
[1642329010934,1.89390295,150.02,149.94,23.8181]
[1642329011332,1.89390295,150.02,149.95,36.11723463]
[1642329011731,1.89390295,150.03,149.95,36.11723463]
[1642329011932,1.89390295,150.03,149.96,23.2589]
[1642329012532,46.60116922,150.04,149.96,23.2589]
[1642329013337,44.70726627,150.04,149.96,22.9989]
[1642329019770,44.70726627,150.04,149.92,1.87570004]
[1642329019771,54.63304215,150.04,149.92,1.87570004]
[1642329019967,54.63304215,150.04,149.92,24.96590004]
[1642329020168,61.02287466,150.04,149.92,23.0902]
[1642329020568,61.02287466,150.04,149.92,68.53220053]
[1642329021468,1.89390295,150.02,149.92,68.53220053]
[1642329021870,1.70077588,150.01,149.92,68.53220053]
[1642329022672,1.89390295,150.02,149.92,68.53220053]
[1642329023273,1.70077588,150.01,149.92,68.53220053]
[1642329024474,1.70077588,150.01,149.92,101.40303453]
[1642329025575,8.46777588,150.01,149.92,32.870834]
[1642329025777,15.3812195,150.01,149.92,23.2437887]
[1642329025976,1.70077588,150.0,149.92,20.23882002]
[1642329026177,1.70077588,150.0,149.89,1.87570004]
[1642329026178,87.0,149.99,149.89,1.87570004]
[1642329026385,94.27455473,149.99,149.89,1.87570004]
[1642329026587,71.0,149.97,149.82,5.40502434]
[1642329026778,10.012,149.94,149.82,5.40502434]
[1642329026980,17.717,149.94,149.82,5.40502434]
[1642329027180,8.97533061,149.93,149.82,5.40502434]
[1642329027579,4.42445653,149.92,149.81,37.99192208]
[1642329027785,11.69901126,149.92,149.81,37.99192208]
[1642329027982,1.70077588,149.91,149.81,37.99192208]
[1642329028683,25.31158065,149.92,149.81,37.99192208]
[1642329029184,25.31158065,149.92,149.82,22.9985]
[1642329029583,24.28867588,149.92,149.82,22.9985]
[1642329029781,22.5879,149.92,149.82,22.9985]
[1642329029983,22.5879,149.92,149.83,0.26]
[1642329030984,22.5879,149.92,149.82,23.2485]
[1642329031688,12.42219681,149.94,149.82,23.2485]
[1642329031883,12.42219681,149.94,149.83,0.26]
[1642329032384,12.42219681,149.94,149.81,37.99192208]
[1642329032585,1.70077588,149.93,149.81,37.99192208]
[1642329033687,12.42219681,149.94,149.81,37.99192208]
[1642329033885,12.42219681,149.94,149.81,37.74192208]
[1642329034188,12.42219681,149.94,149.82,0.26]
[1642329034586,12.42219681,149.94,149.82,22.8077]
[1642329034986,12.42219681,149.94,149.82,23.0577]
[1642329035589,1.70077588,149.96,149.82,23.0577]
[1642329035992,1.80033075,149.96,149.82,23.0577]
[1642329036390,0.09955487,149.96,149.82,28.5177]
[1642329036891,0.09955487,149.96,149.84,46.46362221]
[1642329037090,0.09955487,149.96,149.85,24.0441]
[1642329037289,0.09955487,149.96,149.85,31.6341]
[1642329037490,0.09955487,149.96,149.85,31.8841]
[1642329038190,0.09955487,149.96,149.87,46.45628706]
[1642329038391,0.09955487,149.96,149.88,0.26]
[1642329039694,0.09955487,149.96,149.87,69.59618706]
[1642329040095,0.09955487,149.96,149.88,0.26]
[1642329040294,0.09955487,149.96,149.87,69.59618706]
[1642329040527,0.09955487,149.96,149.88,0.26]
[1642329041327,0.09955487,149.96,149.87,69.59618706]
[1642329041527,0.09955487,149.96,149.87,136.64618706]
[1642329041729,0.09955487,149.96,149.88,0.26]
[1642329041929,0.09955487,149.96,149.87,69.59618706]
[1642329042329,0.09955487,149.96,149.88,0.26]
[1642329047242,0.09955487,149.96,149.87,69.59618706]
[1642329049437,0.09955487,149.96,149.88,0.26]
[1642329051440,0.09955487,149.96,149.87,69.59618706]
[1642329052841,0.09955487,149.96,149.88,0.26]
[1642329053540,0.09955487,149.96,149.87,69.34618706]
[1642329053740,23.48155487,149.96,149.87,69.59618706]
[1642329055441,25.18233075,149.96,149.87,69.59618706]
[1642329060474,23.48155487,149.96,149.87,69.59618706]
[1642329061175,23.48155487,149.96,149.88,0.26]
[1642329064077,0.09955487,149.96,149.88,0.26]
[1642329066480,0.09955487,149.96,149.87,69.59618706]
[1642329067079,0.09955487,149.96,149.87,69.34618706]
[1642329067279,1.80033075,149.96,149.87,69.34618706]
[1642329067481,3.76513531,149.95,149.87,69.34618706]
[1642329067684,28.44003531,149.95,149.87,69.34618706]
[1642329072585,3.76513531,149.95,149.87,69.34618706]
[1642329074586,3.76513531,149.95,149.87,75.34618706]
[1642329074790,28.03893531,149.95,149.87,75.34618706]
[1642329076687,28.03893531,149.95,149.87,69.34618706]
[1642329077088,29.73971119,149.95,149.87,69.34618706]
[1642329077288,29.73971119,149.95,149.87,22.8899]
[1642329078190,29.73971119,149.95,149.88,46.96229479]
[1642329078590,28.03893531,149.95,149.88,46.96229479]
[1642329079392,28.03893531,149.95,149.87,22.8899]
[1642329080494,28.03893531,149.95,149.88,36.43819341]
[1642329081094,28.03893531,149.95,149.87,22.8899]
[1642329082196,1.70077588,149.94,149.87,64.62330828]
[1642329082797,28.03893531,149.95,149.87,64.62330828]
[1642329084898,24.2738,149.95,149.87,64.62330828]
[1642329089029,25.97457588,149.95,149.87,64.62330828]
[1642329094442,25.97457588,149.95,149.87,22.8899]
[1642329096643,25.97457588,149.95,149.88,49.39832847]
[1642329097043,25.97457588,149.95,149.87,22.8899]
[1642329106482,41.19242764,149.95,149.87,22.8899]
[1642329108983,25.97457588,149.95,149.87,22.8899]
[1642329111486,26.07417636,149.95,149.87,22.8899]
[1642329146855,2.77486041,149.93,149.87,22.8899]
[1642329147157,4.47563629,149.93,149.87,22.8899]
[1642329148562,1.70077588,149.93,149.87,22.8899]
[1642329149783,14.61279485,149.93,149.87,22.8899]
[1642329162402,14.61279485,149.93,149.87,22.3899]
[1642329162900,14.61279485,149.93,149.84,70.5339434]
[1642329163102,24.6587,149.92,149.84,70.5339434]
[1642329163301,24.6587,149.92,149.84,26.10396826]
[1642329163601,26.35947588,149.92,149.84,26.10396826]
[1642329164303,26.35947588,149.92,149.84,68.02305715]
[1642329164504,26.35947588,149.92,149.85,23.1591]
[1642329169834,26.35947588,149.92,149.84,1.90116826]
[1642329170237,35.10047588,149.92,149.84,1.90116826]
[1642329170635,35.10047588,149.92,149.83,1.90116826]
[1642329171638,26.35947588,149.92,149.83,1.90116826]
[1642329171837,26.35947588,149.92,149.83,49.993078]
[1642329172042,1.89713156,149.91,149.83,48.09190974]
[1642329172238,4.47217593,149.9,149.83,48.09190974]
[1642329172837,6.17295181,149.9,149.83,48.09190974]
[1642329173638,6.17295181,149.9,149.8,25.04536826]
[1642329174039,6.17295181,149.9,149.81,1.90116826]
[1642329174542,6.17295181,149.9,149.82,37.22891715]
[1642329175040,6.17295181,149.9,149.83,24.5846]
[1642329176644,1.70077588,149.9,149.83,24.5846]
[1642329177645,18.19148551,149.9,149.83,24.5846]
[1642329183451,1.70077588,149.9,149.83,24.5846]
[1642329183850,1.70077588,149.91,149.83,24.5846]
[1642329184452,13.92449286,149.9,149.83,24.5846]
[1642329184852,1.70077588,149.89,149.83,24.5846]
[1642329190557,0.09960048,149.87,149.83,24.5846]
[1642329190961,1.70077588,149.86,149.83,24.5846]
[1642329191157,1.70077588,149.86,149.84,6.06439994]
[1642329192460,0.09960048,149.87,149.84,6.06439994]
[1642329193961,1.80037636,149.87,149.84,6.06439994]
[1642329195161,1.80037636,149.87,149.8,1.90116826]
[1642329195960,1.80037636,149.87,149.81,38.70230228]
[1642329197260,1.80037636,149.87,149.8,1.90116826]
[1642329198661,1.80037636,149.87,149.8,24.83706826]
[1642329199161,1.80037636,149.87,149.8,22.9359]
[1642329199965,1.80037636,149.87,149.8,24.83706826]
[1642329200772,1.80037636,149.87,149.8,22.9359]
[1642329201701,1.80037636,149.87,149.8,24.83706826]
[1642329202495,1.80037636,149.87,149.8,22.9359]
[1642329208304,1.80037636,149.87,149.79,46.1714573]
[1642329208905,1.80037636,149.87,149.79,44.27028904]
[1642329209705,1.80037636,149.87,149.78,1.90116826]
[1642329210410,1.80037636,149.87,149.78,24.69736826]
[1642329211508,1.80037636,149.87,149.78,22.7962]
[1642329213711,26.10367636,149.87,149.78,22.7962]
[1642329217620,26.10367636,149.87,149.75,1.90116826]
[1642329217818,36.11827636,149.87,149.75,1.90116826]
[1642329218519,36.11827636,149.87,149.76,46.61180711]
[1642329218723,42.93738481,149.87,149.76,46.61180711]
[1642329219019,6.96793581,149.86,149.76,46.61180711]
[1642329219246,3.45970204,149.85,149.76,46.61180711]
[1642329219420,28.05527792,149.85,149.76,46.61180711]
[1642329219721,1.70077588,149.84,149.76,46.61180711]
[1642329221551,1.70077588,149.84,149.73,26.09096826]
[1642329222452,1.70077588,149.84,149.73,72.88244283]
[1642329222655,1.70077588,149.84,149.73,24.1898]
[1642329222856,7.93277588,149.84,149.73,24.1898]
[1642329223055,24.2793,149.83,149.73,24.1898]
[1642329223255,25.98007588,149.83,149.73,24.1898]
[1642329223456,1.70077588,149.82,149.73,24.1898]
[1642329224455,11.71887588,149.82,149.73,24.1898]
[1642329224855,13.92449286,149.8,149.73,24.1898]
[1642329225256,1.70077588,149.79,149.73,24.1898]
[1642329226059,1.70077588,149.79,149.68,1.90116826]
[1642329226361,24.85907588,149.79,149.68,1.90116826]
[1642329226763,1.70077588,149.78,149.68,1.90116826]
[1642329227259,1.70077588,149.78,149.68,45.38344798]
[1642329228462,11.72157588,149.78,149.68,45.38344798]
[1642329228862,26.19967588,149.77,149.68,45.38344798]
[1642329229266,1.70077588,149.76,149.68,45.38344798]
[1642329229560,3.45970204,149.75,149.68,45.38344798]
[1642329229961,1.70077588,149.74,149.66,22.8417]
[1642329230863,26.05307588,149.74,149.66,22.8417]
[1642329231064,26.05307588,149.74,149.67,41.02663019]
[1642329231262,1.70077588,149.73,149.67,41.02663019]
[1642329231862,1.70077588,149.76,149.67,41.02663019]
[1642329232062,1.70077588,149.76,149.68,24.9245]
[1642329232561,0.02,149.73,149.68,30.5835]
[1642329233566,1.72077588,149.73,149.68,24.9245]
[1642329238770,1.72077588,149.73,149.68,70.91968242]
[1642329239406,1.72077588,149.73,149.68,24.9245]
[1642329240307,1.72077588,149.73,149.68,73.58896369]
[1642329242204,1.72077588,149.73,149.68,24.9245]
[1642329250410,1.72077588,149.73,149.66,48.98277495]
[1642329250609,1.72077588,149.73,149.65,24.3442]
[1642329250610,25.38707588,149.73,149.65,24.3442]
[1642329250810,25.38707588,149.73,149.66,24.0816]
[1642329251611,25.38707588,149.73,149.66,65.28305481]
[1642329252416,25.38707588,149.73,149.66,24.0816]
[1642329253914,39.32005869,149.73,149.66,24.0816]
[1642329255314,39.32005869,149.73,149.64,1.90116826]
[1642329255515,39.32005869,149.73,149.63,1.90116826]
[1642329255516,56.13427825,149.73,149.63,1.90116826]
[1642329257815,56.13427825,149.73,149.62,26.54596826]
[1642329259616,56.13427825,149.73,149.62,24.6448]
[1642329260417,46.11027825,149.73,149.62,26.54596826]
[1642329260617,32.17729544,149.73,149.62,26.54596826]
[1642329260816,46.11208279,149.73,149.62,26.54596826]
[1642329261420,32.17729544,149.73,149.62,26.54596826]
[1642329266353,42.20129544,149.73,149.62,26.54596826]
[1642329267758,32.17729544,149.73,149.62,26.54596826]
[1642329268759,0.09960048,149.67,149.63,1.90116826]
[1642329268961,0.00960048,149.67,149.63,1.90116826]
[1642329269558,0.00960048,149.67,149.62,33.40796826]
[1642329270458,0.00960048,149.67,149.63,1.90116826]
[1642329274463,0.02960048,149.67,149.63,1.90116826]
[1642329287977,0.02960048,149.67,149.64,1.90116826]
[1642329288779,0.02960048,149.67,149.65,6.06439994]
[1642329289178,0.02960048,149.67,149.66,42.44176122]
[1642329289381,0.02960048,149.67,149.66,81.44176122]
[1642329289581,0.02960048,149.67,149.66,39.0]
[1642329291080,0.02960048,149.67,149.66,45.06439994]
[1642329292380,0.02960048,149.67,149.66,39.0]
[1642329292579,0.02960048,149.67,149.66,45.06439994]
[1642329295880,0.02960048,149.67,149.66,39.0]
[1642329298584,0.02960048,149.67,149.64,23.0081]
[1642329298783,0.02960048,149.67,149.65,6.06439994]
[1642329299291,0.02960048,149.67,149.64,23.0081]
[1642329300586,1.73037636,149.67,149.64,23.0081]
[1642329305692,1.73037636,149.67,149.61,37.338921]
[1642329311709,1.73037636,149.67,149.61,35.43775274]
[1642329312811,1.73037636,149.67,149.6,1.90116826]
[1642329315137,1.73037636,149.67,149.59,23.2117]
[1642329315336,26.16387636,149.67,149.59,23.2117]
[1642329315536,26.16387636,149.67,149.59,68.20511071]
[1642329316337,26.16387636,149.67,149.59,44.99341071]
[1642329316538,36.19197636,149.67,149.56,11.90116826]
[1642329316839,36.19197636,149.67,149.57,24.1476]
[1642329317638,36.19197636,149.67,149.57,71.51689962]
[1642329318539,6.97275229,149.66,149.57,71.51689962]
[1642329318737,17.00135229,149.66,149.57,71.51689962]
[1642329318937,1.70077588,149.65,149.57,71.51689962]
[1642329319437,12.60712565,149.64,149.57,71.51689962]
[1642329319838,1.70077588,149.63,149.57,71.51689962]
[1642329321443,1.70077588,149.63,149.57,24.1476]
[1642329325853,1.72077588,149.63,149.57,24.1476]
[1642329330660,0.02,149.63,149.57,24.1476]
[1642329334191,0.00960048,149.67,149.57,24.1476]
[1642329334393,0.00960048,149.67,149.57,24.3976]
[1642329334791,0.00960048,149.67,149.57,24.1476]
[1642329334990,1.71037636,149.67,149.57,24.1476]
[1642329335592,1.71037636,149.67,149.57,26.04876826]
[1642329336594,1.71037636,149.67,149.57,24.1476]
[1642329336791,24.76157636,149.67,149.57,24.1476]
[1642329341597,24.76157636,149.67,149.65,3.7453826]
[1642329341797,1.71037636,149.67,149.65,3.7453826]
[1642329343306,1.70077588,149.67,149.65,3.7453826]
[1642329345213,1.70077588,149.68,149.65,3.7453826]
[1642329347212,1.70077588,149.68,149.65,1.9313826]
[1642329348019,3.59790744,149.68,149.65,1.9313826]
[1642329348412,1.70077588,149.67,149.65,1.9313826]
[1642329349715,8.67406696,149.67,149.65,1.9313826]
[1642329350213,1.70077588,149.66,149.65,1.9313826]
[1642329360053,3.59790744,149.68,149.65,64.99578254]
[1642329361054,1.70077588,149.68,149.65,64.99578254]
[1642329361457,1.70077588,149.68,149.65,61.96358257]
[1642329361660,1.70077588,149.68,149.66,3.03219997]
[1642329362856,1.70077588,149.68,149.65,61.96358257]
[1642329363062,1.70077588,149.68,149.65,58.9313826]
[1642329366665,1.70077588,149.68,149.65,1.9313826]
[1642329369369,1.70077588,149.68,149.66,6.06439994]
[1642329369768,3.59790744,149.7,149.66,6.06439994]
[1642329369969,1.89713156,149.7,149.66,6.06439994]
[1642329371695,1.70077588,149.72,149.66,6.06439994]
[1642329381504,1.70077588,149.72,149.65,25.5801826]
[1642329384708,1.70077588,149.73,149.65,25.5801826]
[1642329385108,16.30233872,149.73,149.65,25.5801826]
[1642329385306,1.70077588,149.73,149.65,25.5801826]
[1642329385507,1.70077588,149.72,149.65,25.5801826]
[1642329386508,1.89713156,149.73,149.66,67.05]
[1642329386809,3.79722664,149.77,149.67,111.0]
[1642329387024,3.79722664,149.77,149.68,67.05]
[1642329387315,2.664e-05,149.81,149.7,67.05]
[1642329387508,2.664e-05,149.81,149.71,45.80647747]
[1642329387708,2.664e-05,149.81,149.71,54.07047747]
[1642329388110,5.69583996,149.84,149.72,22.711]
[1642329388308,3.79764656,149.84,149.72,22.711]
[1642329388708,3.79764656,149.84,149.73,0.26]
[1642329389109,3.79764656,149.84,149.73,67.31]
[1642329389308,24.4941,149.86,149.73,8.629]
[1642329389508,15.78193328,149.86,149.73,8.629]
[1642329389711,5.69583996,149.88,149.73,8.629]
[1642329389914,5.69583996,149.88,149.74,24.9352]
[1642329390310,5.69583996,149.88,149.75,0.26]
[1642329390509,23.95087826,149.89,149.75,0.26]
[1642329390709,40.08420181,149.89,149.75,0.26]
[1642329391510,17.26320181,149.89,149.76,41.6558713]
[1642329391811,16.13332355,149.89,149.82,1.9313826]
[1642329393910,10.42314901,149.9,149.82,1.9313826]
[1642329394912,15.73497511,149.89,149.82,1.9313826]
[1642329395710,22.9296,149.92,149.82,1.9313826]
[1642329395911,23.2055,149.93,149.82,1.9313826]
[1642329396512,1.53246853,149.95,149.82,1.9313826]
[1642329396812,16.24709574,149.94,149.82,1.9313826]
[1642329402021,16.24709574,149.94,149.92,1.9313826]
[1642329402923,16.24709574,149.94,149.81,71.1902444]
[1642329402924,42.70077588,149.93,149.81,24.7366]
[1642329403122,65.42617588,149.93,149.81,24.7366]
[1642329403321,1.70077588,149.92,149.81,24.7366]
[1642329403924,1.70077588,149.92,149.81,60.86970142]
[1642329404567,10.0117,149.91,149.81,60.86970142]
[1642329404968,1.70077588,149.9,149.81,60.86970142]
[1642329405169,1.13709916,149.89,149.81,60.86970142]
[1642329405671,2.83787504,149.89,149.81,36.13310142]
[1642329405870,2.83787504,149.89,149.72,67.05]
[1642329406075,2.83787504,149.89,149.73,46.119]
[1642329406972,2.83787504,149.89,149.74,36.32986648]
[1642329407375,12.85097504,149.89,149.75,24.1339]
[1642329408000,22.7497,149.88,149.75,24.1339]
[1642329408401,1.70077588,149.87,149.75,24.1339]
[1642329422620,1.70077588,149.87,149.86,3.361783]
[1642329426025,1.70077588,149.88,149.86,3.361783]
[1642329427450,19.12717561,149.88,149.86,3.361783]
[1642329427750,1.70077588,149.87,149.86,3.361783]
[1642329429752,1.70077588,149.87,149.86,1e-08]
[1642329430153,12.46569204,149.87,149.86,1e-08]
[1642329430954,8.66595764,149.87,149.86,1e-08]
[1642329432057,8.66595764,149.87,149.78,41.70882924]
[1642329432457,1.70077588,149.86,149.78,41.70882924]
[1642329433057,13.2234713,149.85,149.78,41.70882924]
[1642329433357,1.70077588,149.84,149.78,41.70882924]
[1642329442868,0.70077588,149.84,149.78,41.70882924]
[1642329443268,1.70077588,149.83,149.78,41.70882924]
[1642329443469,1.70077588,149.85,149.78,41.70882924]
[1642329443868,1.70077588,149.82,149.78,41.70882924]
[1642329448271,1.70077588,149.85,149.78,41.70882924]
[1642329456885,1.70077588,149.85,149.79,22.5128]
[1642329458486,1.70077588,149.86,149.79,22.5128]
[1642329460091,3.80663061,149.85,149.79,22.5128]
[1642329460518,5.50740649,149.85,149.79,22.5128]
[1642329462220,1.70077588,149.85,149.79,22.5128]
[1642329470834,34.554,149.87,149.79,22.5128]
[1642329470835,1.70077588,149.86,149.79,22.5128]
[1642329472537,3.8074854,149.85,149.79,22.5128]
[1642329472837,1.70077588,149.84,149.79,22.5128]
[1642329507729,1.90396506,149.82,149.79,22.5128]
[1642329508129,3.60474094,149.82,149.79,22.5128]
[1642329508529,3.60474094,149.82,149.76,44.5931017]
[1642329509532,3.60474094,149.82,149.74,23.7331]
[1642329510634,3.60474094,149.82,149.75,36.49249142]
[1642329511833,3.60474094,149.82,149.81,2.8727064]
[1642329516876,1.70077588,149.82,149.81,2.8727064]
[1642329517679,3.60474094,149.82,149.81,2.8727064]